[Event "Titled Tuesday Blitz March 21 Early 2023"]
[White "lolliNOPE"]
[Black "Baches Garcia, Guillermo"]
[BlackFideId "2209764"]
[WhiteElo "2058"]
[BlackElo "2436"]
[Result "0-1"]
[Round "10"]
[TimeControl "180+2"]
[Date "2023.03.21"]
[WhiteClock "0:02:10"]
[BlackClock "0:01:12"]

1. e4 {[%clk 0:03:00]}  d5 {[%clk 0:03:00]} 2. exd5 {[%clk 0:03:01]}  Qxd5 {[%clk 0:03:01]} 3. Nc3 {[%clk 0:03:01]}  Qa5 {[%clk 0:03:01]} 4. d4 {[%clk 0:03:02]}  c6 {[%clk 0:03:00]} 5. Nf3 {[%clk 0:03:02]}  Nf6 {[%clk 0:03:00]} 6. Bd3 {[%clk 0:03:00]}  Bf5 {[%clk 0:02:57]} 7. O-O {[%clk 0:02:59]}  e6 {[%clk 0:02:54]} 8. Re1 {[%clk 0:02:59]}  Nbd7 {[%clk 0:02:46]} 9. Ne5 {[%clk 0:02:59]}  Bxd3 {[%clk 0:02:41]} 10. Qxd3 {[%clk 0:02:59]}  Bb4 {[%clk 0:02:38]} 11. Bd2 {[%clk 0:02:59]}  O-O {[%clk 0:02:37]} 12. a3 {[%clk 0:02:53]}  Bxc3 {[%clk 0:02:37]} 13. Bxc3 {[%clk 0:02:52]}  Qc7 {[%clk 0:02:36]} 14. Nxd7 {[%clk 0:02:51]}  Qxd7 {[%clk 0:02:33]} 15. b3 {[%clk 0:02:49]}  Rfd8 {[%clk 0:02:25]} 16. Rad1 {[%clk 0:02:47]}  Rac8 {[%clk 0:02:21]} 17. Bb2 {[%clk 0:02:45]}  b5 {[%clk 0:02:15]} 18. c4 {[%clk 0:02:40]}  a5 {[%clk 0:02:08]} 19. Qg3 {[%clk 0:02:34]}  Qc7 {[%clk 0:01:59]} 20. Qg5 {[%clk 0:02:28]}  h6 {[%clk 0:01:53]} 21. Qh4 {[%clk 0:02:28]}  bxc4 {[%clk 0:01:41]} 22. bxc4 {[%clk 0:02:28]}  Rb8 {[%clk 0:01:36]} 23. Ba1 {[%clk 0:02:23]}  Ne8 {[%clk 0:01:31]} 24. d5 {[%clk 0:02:18]}  cxd5 {[%clk 0:01:23]} 25. cxd5 {[%clk 0:02:12]}  Rxd5 {[%clk 0:01:14]} 26. Rxd5 {[%clk 0:02:11]}  exd5 {[%clk 0:01:15]} 27. Be5 {[%clk 0:02:10]}  Qxe5 {[%clk 0:01:12]} 0-1


[Site "https://www.chess.com"]

[Event "Titled Tuesday Blitz March 21 Early 2023"]
[White "Biriukov, Ilja"]
[Black "Kovalevsky, Stanislav"]
[WhiteFideId "4113373"]
[BlackFideId "13508598"]
[WhiteElo "2426"]
[BlackElo "2174"]
[Result "1-0"]
[Round "10"]
[TimeControl "180+2"]
[Date "2023.03.21"]
[WhiteClock "0:00:10"]
[BlackClock "0:00:12"]

1. c4 {[%clk 0:02:55]}  e6 {[%clk 0:02:50]} 2. Nc3 {[%clk 0:02:54]}  d5 {[%clk 0:02:51]} 3. cxd5 {[%clk 0:02:54]}  exd5 {[%clk 0:02:52]} 4. d4 {[%clk 0:02:54]}  Nf6 {[%clk 0:02:52]} 5. Bg5 {[%clk 0:02:53]}  Be7 {[%clk 0:02:53]} 6. e3 {[%clk 0:02:53]}  O-O {[%clk 0:02:49]} 7. Qc2 {[%clk 0:02:52]}  c6 {[%clk 0:02:44]} 8. Bd3 {[%clk 0:02:52]}  h6 {[%clk 0:02:44]} 9. Bh4 {[%clk 0:02:51]}  Re8 {[%clk 0:02:43]} 10. Nge2 {[%clk 0:02:51]}  Nbd7 {[%clk 0:02:43]} 11. O-O {[%clk 0:02:50]}  Nf8 {[%clk 0:02:43]} 12. Rae1 {[%clk 0:02:50]}  Ne4 {[%clk 0:02:42]} 13. Bxe7 {[%clk 0:02:48]}  Qxe7 {[%clk 0:02:43]} 14. f3 {[%clk 0:02:39]}  Nd6 {[%clk 0:02:43]} 15. e4 {[%clk 0:02:36]}  dxe4 {[%clk 0:02:28]} 16. fxe4 {[%clk 0:02:35]}  Bg4 {[%clk 0:02:18]} 17. e5 {[%clk 0:02:30]}  Nc8 {[%clk 0:02:17]} 18. Rf4 {[%clk 0:02:09]}  Bh5 {[%clk 0:02:16]} 19. Ref1 {[%clk 0:02:07]}  c5 {[%clk 0:02:15]} 20. Ng3 {[%clk 0:01:40]}  cxd4 {[%clk 0:02:09]} 21. Nce4 {[%clk 0:01:35]}  Bg6 {[%clk 0:02:00]} 22. Bc4 {[%clk 0:01:18]}  Qxe5 {[%clk 0:01:55]} 23. Bxf7+ {[%clk 0:01:15]}  Bxf7 {[%clk 0:01:55]} 24. Rxf7 {[%clk 0:01:15]}  Nd6 {[%clk 0:01:49]} 25. Nxd6 {[%clk 0:00:57]}  Qxd6 {[%clk 0:01:50]} 26. Nf5 {[%clk 0:00:49]}  Qb6 {[%clk 0:01:13]} 27. Rxg7+ {[%clk 0:00:47]}  Kh8 {[%clk 0:01:14]} 28. Qd2 {[%clk 0:00:34]}  Re5 {[%clk 0:01:00]} 29. Rf7 {[%clk 0:00:23]}  d3+ {[%clk 0:00:30]} 30. Kh1 {[%clk 0:00:22]}  Qg6 {[%clk 0:00:30]} 31. Ne7 {[%clk 0:00:20]}  Qg5 {[%clk 0:00:20]} 32. Rxf8+ {[%clk 0:00:19]}  Rxf8 {[%clk 0:00:20]} 33. Rxf8+ {[%clk 0:00:19]}  Kg7 {[%clk 0:00:20]} 34. Rg8+ {[%clk 0:00:19]}  Kf7 {[%clk 0:00:19]} 35. Rxg5 {[%clk 0:00:19]}  hxg5 {[%clk 0:00:20]} 36. Nc8 {[%clk 0:00:17]}  Re2 {[%clk 0:00:19]} 37. Qd1 {[%clk 0:00:14]}  Kg6 {[%clk 0:00:16]} 38. h3 {[%clk 0:00:14]}  Kh5 {[%clk 0:00:16]} 39. Nd6 {[%clk 0:00:12]}  Kh4 {[%clk 0:00:15]} 40. Nb5 {[%clk 0:00:11]}  g4 {[%clk 0:00:14]} 41. Qxd3 {[%clk 0:00:11]}  Re1+ {[%clk 0:00:14]} 42. Kh2 {[%clk 0:00:11]}  Re3 {[%clk 0:00:12]} 43. Qxe3 {[%clk 0:00:10]} 1-0


[Site "https://www.chess.com"]

[Event "Titled Tuesday Blitz March 21 Early 2023"]
[White "Gatterer, Florian"]
[Black "monkins"]
[WhiteFideId "811688"]
[WhiteElo "2221"]
[BlackElo "2238"]
[Result "1/2-1/2"]
[Round "10"]
[TimeControl "180+2"]
[Date "2023.03.21"]
[WhiteClock "0:00:12"]
[BlackClock "0:00:04"]

1. e4 {[%clk 0:03:00]}  c5 {[%clk 0:02:59]} 2. Nf3 {[%clk 0:03:01]}  g6 {[%clk 0:02:59]} 3. c4 {[%clk 0:02:59]}  Bg7 {[%clk 0:02:58]} 4. d4 {[%clk 0:02:59]}  cxd4 {[%clk 0:02:57]} 5. Nxd4 {[%clk 0:02:59]}  Nc6 {[%clk 0:02:57]} 6. Be3 {[%clk 0:02:58]}  Nf6 {[%clk 0:02:53]} 7. Nc3 {[%clk 0:02:57]}  O-O {[%clk 0:02:49]} 8. f3 {[%clk 0:02:57]}  Qb6 {[%clk 0:02:43]} 9. Nc2 {[%clk 0:02:00]}  Qxb2 {[%clk 0:02:14]} 10. Nb5 {[%clk 0:02:00]}  Nb4 {[%clk 0:01:48]} 11. Nxb4 {[%clk 0:01:55]}  Qxb4+ {[%clk 0:01:46]} 12. Bd2 {[%clk 0:01:55]}  Qc5 {[%clk 0:01:36]} 13. Qc1 {[%clk 0:01:53]}  d6 {[%clk 0:01:23]} 14. Be3 {[%clk 0:01:52]}  Qc6 {[%clk 0:01:22]} 15. Nxa7 {[%clk 0:01:37]}  Rxa7 {[%clk 0:01:12]} 16. Bxa7 {[%clk 0:01:36]}  Nxe4 {[%clk 0:01:07]} 17. fxe4 {[%clk 0:01:27]}  Qxe4+ {[%clk 0:01:06]} 18. Be2 {[%clk 0:01:26]}  Bxa1 {[%clk 0:00:31]} 19. Qxa1 {[%clk 0:01:23]}  Bg4 {[%clk 0:00:31]} 20. Qb2 {[%clk 0:01:13]}  Ra8 {[%clk 0:00:18]} 21. Bf2 {[%clk 0:01:04]}  Bxe2 {[%clk 0:00:13]} 22. Qxe2 {[%clk 0:01:03]}  Qb1+ {[%clk 0:00:11]} 23. Qd1 {[%clk 0:00:59]}  Qxa2 {[%clk 0:00:11]} 24. O-O {[%clk 0:00:54]}  Qxc4 {[%clk 0:00:11]} 25. Qb1 {[%clk 0:00:50]}  b5 {[%clk 0:00:09]} 26. Rc1 {[%clk 0:00:49]}  Qd5 {[%clk 0:00:09]} 27. Qb2 {[%clk 0:00:43]}  Re8 {[%clk 0:00:07]} 28. h3 {[%clk 0:00:41]}  e5 {[%clk 0:00:07]} 29. Qc2 {[%clk 0:00:38]}  Kg7 {[%clk 0:00:05]} 30. Rd1 {[%clk 0:00:38]}  Qe6 {[%clk 0:00:05]} 31. Qb2 {[%clk 0:00:36]}  d5 {[%clk 0:00:04]} 32. Qxb5 {[%clk 0:00:36]}  d4 {[%clk 0:00:04]} 33. Qc5 {[%clk 0:00:35]}  h5 {[%clk 0:00:04]} 34. Re1 {[%clk 0:00:32]}  Qf6 {[%clk 0:00:03]} 35. Qc2 {[%clk 0:00:27]}  h4 {[%clk 0:00:02]} 36. Qe4 {[%clk 0:00:25]}  Re6 {[%clk 0:00:02]} 37. Bxh4 {[%clk 0:00:24]}  Qf5 {[%clk 0:00:02]} 38. Qxf5 {[%clk 0:00:20]}  gxf5 {[%clk 0:00:03]} 39. Bf2 {[%clk 0:00:20]}  Kg6 {[%clk 0:00:02]} 40. Rd1 {[%clk 0:00:20]}  Rd6 {[%clk 0:00:02]} 41. Kf1 {[%clk 0:00:18]}  f4 {[%clk 0:00:02]} 42. Ke2 {[%clk 0:00:17]}  Kf5 {[%clk 0:00:03]} 43. Kf1 {[%clk 0:00:15]}  Ra6 {[%clk 0:00:03]} 44. Re1 {[%clk 0:00:12]}  Ra2 {[%clk 0:00:03]} 45. Rd1 {[%clk 0:00:12]}  f6 {[%clk 0:00:03]} 46. Bxd4 {[%clk 0:00:12]}  exd4 {[%clk 0:00:03]} 47. Rxd4 {[%clk 0:00:12]}  Ra1+ {[%clk 0:00:03]} 48. Kf2 {[%clk 0:00:11]}  Ra2+ {[%clk 0:00:03]} 49. Kg1 {[%clk 0:00:11]}  Ra1+ {[%clk 0:00:03]} 50. Kf2 {[%clk 0:00:11]}  Ra2+ {[%clk 0:00:03]} 51. Kg1 {[%clk 0:00:11]}  Ra1+ {[%clk 0:00:04]} 52. Kf2 {[%clk 0:00:12]} 1/2-1/2


[Site "https://www.chess.com"]

[Event "Titled Tuesday Blitz March 21 Early 2023"]
[White "Krzywda, Andrzej"]
[Black "Fabris, Alberto"]
[WhiteFideId "1114565"]
[BlackFideId "801348"]
[WhiteElo "2155"]
[BlackElo "2207"]
[Result "1-0"]
[Round "10"]
[TimeControl "180+2"]
[Date "2023.03.21"]
[WhiteClock "0:00:29"]
[BlackClock "0:00:05"]

1. c4 {[%clk 0:02:53]}  e5 {[%clk 0:02:59]} 2. Nc3 {[%clk 0:02:50]}  Nf6 {[%clk 0:02:59]} 3. Nf3 {[%clk 0:02:50]}  Nc6 {[%clk 0:02:58]} 4. g3 {[%clk 0:02:51]}  d5 {[%clk 0:02:56]} 5. cxd5 {[%clk 0:02:51]}  Nxd5 {[%clk 0:02:57]} 6. Bg2 {[%clk 0:02:51]}  Be6 {[%clk 0:02:55]} 7. O-O {[%clk 0:02:38]}  Be7 {[%clk 0:02:55]} 8. d4 {[%clk 0:02:35]}  exd4 {[%clk 0:02:54]} 9. Nxd4 {[%clk 0:02:30]}  Nxc3 {[%clk 0:02:41]} 10. bxc3 {[%clk 0:02:29]}  Nxd4 {[%clk 0:02:27]} 11. cxd4 {[%clk 0:02:27]}  c6 {[%clk 0:02:24]} 12. e4 {[%clk 0:02:26]}  O-O {[%clk 0:02:22]} 13. Rb1 {[%clk 0:02:18]}  Rb8 {[%clk 0:02:13]} 14. Be3 {[%clk 0:01:57]}  b6 {[%clk 0:02:10]} 15. a4 {[%clk 0:01:52]}  Qd7 {[%clk 0:02:01]} 16. Qd2 {[%clk 0:01:47]}  Rfd8 {[%clk 0:01:55]} 17. Rfd1 {[%clk 0:01:47]}  Bf6 {[%clk 0:01:41]} 18. Rbc1 {[%clk 0:01:41]}  Rbc8 {[%clk 0:01:36]} 19. Qb4 {[%clk 0:01:29]}  Be7 {[%clk 0:01:32]} 20. Qb2 {[%clk 0:01:29]}  Bf8 {[%clk 0:01:31]} 21. Rd2 {[%clk 0:01:23]}  Qe7 {[%clk 0:01:24]} 22. Rdc2 {[%clk 0:01:21]}  Bd7 {[%clk 0:01:21]} 23. h4 {[%clk 0:01:19]}  Qb4 {[%clk 0:01:20]} 24. Qa1 {[%clk 0:01:14]}  c5 {[%clk 0:01:11]} 25. d5 {[%clk 0:01:08]}  Qxa4 {[%clk 0:01:09]} 26. Ra2 {[%clk 0:01:07]}  Qb5 {[%clk 0:00:59]} 27. Bf1 {[%clk 0:00:55]}  c4 {[%clk 0:00:54]} 28. Rxa7 {[%clk 0:00:53]}  Qb3 {[%clk 0:00:35]} 29. Bd4 {[%clk 0:00:47]}  Qf3 {[%clk 0:00:33]} 30. Bg2 {[%clk 0:00:46]}  Qh5 {[%clk 0:00:33]} 31. Qa6 {[%clk 0:00:41]}  b5 {[%clk 0:00:32]} 32. Rxd7 {[%clk 0:00:38]}  Ra8 {[%clk 0:00:21]} 33. Ra7 {[%clk 0:00:37]}  Rxa7 {[%clk 0:00:20]} 34. Qxa7 {[%clk 0:00:38]}  b4 {[%clk 0:00:15]} 35. Rxc4 {[%clk 0:00:33]}  Qd1+ {[%clk 0:00:14]} 36. Bf1 {[%clk 0:00:33]}  b3 {[%clk 0:00:14]} 37. Qb6 {[%clk 0:00:33]}  Re8 {[%clk 0:00:09]} 38. e5 {[%clk 0:00:29]}  h6 {[%clk 0:00:05]} 39. d6 {[%clk 0:00:29]} 1-0


[Site "https://www.chess.com"]

[Event "Titled Tuesday Blitz March 21 Early 2023"]
[White "Abrosimov, Vladimir"]
[Black "salgadoLO"]
[WhiteFideId "4166892"]
[WhiteElo "2336"]
[BlackElo "2191"]
[Result "1/2-1/2"]
[Round "10"]
[TimeControl "180+2"]
[Date "2023.03.21"]
[WhiteClock "0:00:57"]
[BlackClock "0:00:58"]

1. c4 {[%clk 0:03:00]}  e6 {[%clk 0:02:54]} 2. Nc3 {[%clk 0:02:55]}  d5 {[%clk 0:02:55]} 3. cxd5 {[%clk 0:02:55]}  exd5 {[%clk 0:02:55]} 4. d4 {[%clk 0:02:48]}  c6 {[%clk 0:02:54]} 5. Nf3 {[%clk 0:02:47]}  Bd6 {[%clk 0:02:49]} 6. Bg5 {[%clk 0:02:33]}  Ne7 {[%clk 0:02:47]} 7. e3 {[%clk 0:02:31]}  Bf5 {[%clk 0:02:45]} 8. Bd3 {[%clk 0:02:29]}  Bxd3 {[%clk 0:02:44]} 9. Qxd3 {[%clk 0:02:28]}  O-O {[%clk 0:02:44]} 10. O-O {[%clk 0:02:28]}  Nd7 {[%clk 0:02:40]} 11. a3 {[%clk 0:02:27]}  h6 {[%clk 0:02:39]} 12. Bh4 {[%clk 0:02:27]}  Qc7 {[%clk 0:02:28]} 13. Rac1 {[%clk 0:02:23]}  a6 {[%clk 0:02:25]} 14. b4 {[%clk 0:02:15]}  Qb8 {[%clk 0:01:59]} 15. Na4 {[%clk 0:01:57]}  Ng6 {[%clk 0:01:50]} 16. Bg3 {[%clk 0:01:57]}  Bxg3 {[%clk 0:01:43]} 17. hxg3 {[%clk 0:01:53]}  Qd6 {[%clk 0:01:36]} 18. Nc5 {[%clk 0:01:51]}  Rab8 {[%clk 0:01:33]} 19. Rc2 {[%clk 0:01:43]}  Nb6 {[%clk 0:01:29]} 20. Nd2 {[%clk 0:01:38]}  Rfe8 {[%clk 0:01:27]} 21. Rfc1 {[%clk 0:01:34]}  Nf8 {[%clk 0:01:26]} 22. a4 {[%clk 0:01:30]}  Ne6 {[%clk 0:01:23]} 23. a5 {[%clk 0:01:28]}  Nd7 {[%clk 0:01:21]} 24. Nf3 {[%clk 0:01:19]}  Nc7 {[%clk 0:01:19]} 25. Qf5 {[%clk 0:01:11]}  Nxc5 {[%clk 0:01:13]} 26. bxc5 {[%clk 0:01:11]}  Qe6 {[%clk 0:01:05]} 27. Qxe6 {[%clk 0:01:09]}  Rxe6 {[%clk 0:01:04]} 28. Ne5 {[%clk 0:01:09]}  Nb5 {[%clk 0:01:02]} 29. Re1 {[%clk 0:00:57]}  Rbe8 {[%clk 0:00:58]} 1/2-1/2


[Site "https://www.chess.com"]

[Event "Titled Tuesday Blitz March 21 Early 2023"]
[White "Corredor Castellanos, Camilo"]
[Black "Sanchez, Robert"]
[WhiteFideId "4425871"]
[BlackFideId "2034360"]
[WhiteElo "1994"]
[BlackElo "2166"]
[Result "1-0"]
[Round "10"]
[TimeControl "180+2"]
[Date "2023.03.21"]
[WhiteClock "0:00:22"]
[BlackClock "0:00:08"]

1. Nf3 {[%clk 0:03:00]}  d5 {[%clk 0:02:59]} 2. b3 {[%clk 0:02:57]}  Nc6 {[%clk 0:02:58]} 3. d4 {[%clk 0:02:56]}  Bf5 {[%clk 0:02:58]} 4. Bb2 {[%clk 0:02:56]}  e6 {[%clk 0:02:59]} 5. e3 {[%clk 0:02:54]}  a6 {[%clk 0:02:58]} 6. a3 {[%clk 0:02:53]}  Nf6 {[%clk 0:02:59]} 7. c4 {[%clk 0:02:51]}  Be7 {[%clk 0:02:59]} 8. Nc3 {[%clk 0:02:51]}  O-O {[%clk 0:02:59]} 9. Be2 {[%clk 0:02:51]}  dxc4 {[%clk 0:02:59]} 10. bxc4 {[%clk 0:02:50]}  h6 {[%clk 0:02:57]} 11. O-O {[%clk 0:02:50]}  Rb8 {[%clk 0:02:54]} 12. Qc1 {[%clk 0:02:43]}  Ne4 {[%clk 0:02:53]} 13. Nxe4 {[%clk 0:02:40]}  Bxe4 {[%clk 0:02:53]} 14. Rd1 {[%clk 0:02:37]}  Na5 {[%clk 0:02:52]} 15. Qc3 {[%clk 0:02:37]}  b6 {[%clk 0:02:48]} 16. Nd2 {[%clk 0:02:32]}  Bb7 {[%clk 0:02:45]} 17. e4 {[%clk 0:02:31]}  Bf6 {[%clk 0:02:41]} 18. e5 {[%clk 0:02:27]}  Be7 {[%clk 0:02:41]} 19. Rac1 {[%clk 0:02:26]}  Qc8 {[%clk 0:02:32]} 20. Bf3 {[%clk 0:02:25]}  c5 {[%clk 0:02:29]} 21. d5 {[%clk 0:02:23]}  exd5 {[%clk 0:02:23]} 22. cxd5 {[%clk 0:02:24]}  Bg5 {[%clk 0:02:21]} 23. Ne4 {[%clk 0:02:16]}  Bxc1 {[%clk 0:02:21]} 24. Rxc1 {[%clk 0:02:17]}  Bxd5 {[%clk 0:02:11]} 25. e6 {[%clk 0:02:13]}  f6 {[%clk 0:02:07]} 26. Nxf6+ {[%clk 0:02:10]}  Rxf6 {[%clk 0:02:07]} 27. Bxd5 {[%clk 0:02:11]}  Qc7 {[%clk 0:01:52]} 28. Re1 {[%clk 0:02:06]}  Re8 {[%clk 0:01:47]} 29. Re3 {[%clk 0:01:56]}  Qd6 {[%clk 0:01:34]} 30. Re5 {[%clk 0:01:19]}  Nc6 {[%clk 0:01:25]} 31. e7+ {[%clk 0:01:04]}  Kh8 {[%clk 0:01:20]} 32. Bxc6 {[%clk 0:00:51]}  Qxc6 {[%clk 0:01:21]} 33. h3 {[%clk 0:00:47]}  Qd6 {[%clk 0:01:14]} 34. Qe3 {[%clk 0:00:46]}  Rf7 {[%clk 0:01:04]} 35. Re6 {[%clk 0:00:45]}  Qd1+ {[%clk 0:00:59]} 36. Kh2 {[%clk 0:00:44]}  Kg8 {[%clk 0:00:49]} 37. Qe5 {[%clk 0:00:27]}  Qd7 {[%clk 0:00:44]} 38. Rxh6 {[%clk 0:00:28]}  Rexe7 {[%clk 0:00:40]} 39. Qg5 {[%clk 0:00:24]}  Qf5 {[%clk 0:00:29]} 40. Qxf5 {[%clk 0:00:21]}  Rxf5 {[%clk 0:00:29]} 41. Rxb6 {[%clk 0:00:22]}  Rxf2 {[%clk 0:00:27]} 42. Kg3 {[%clk 0:00:20]}  Ree2 {[%clk 0:00:25]} 43. Bc3 {[%clk 0:00:21]}  Rxg2+ {[%clk 0:00:22]} 44. Kf4 {[%clk 0:00:21]}  Rc2 {[%clk 0:00:19]} 45. Be5 {[%clk 0:00:21]}  Kf7 {[%clk 0:00:17]} 46. Kf5 {[%clk 0:00:22]}  g6+ {[%clk 0:00:12]} 47. Ke4 {[%clk 0:00:22]}  Rge2+ {[%clk 0:00:09]} 48. Kf4 {[%clk 0:00:22]}  Rc4+ {[%clk 0:00:08]} 49. Kf3 {[%clk 0:00:22]} 1-0


[Site "https://www.chess.com"]

[Event "Titled Tuesday Blitz March 21 Early 2023"]
[White "Palacio,Igor Da Paz"]
[Black "Mirzanurov, Bulat"]
[WhiteFideId "2121140"]
[BlackFideId "4184521"]
[WhiteElo "2126"]
[BlackElo "2019"]
[Result "0-1"]
[Round "10"]
[TimeControl "180+2"]
[Date "2023.03.21"]
[WhiteClock "0:00:01"]
[BlackClock "0:00:24"]

1. e4 {[%clk 0:03:00]}  c5 {[%clk 0:02:59]} 2. Nc3 {[%clk 0:03:00]}  d6 {[%clk 0:02:58]} 3. g3 {[%clk 0:03:01]}  Nc6 {[%clk 0:02:56]} 4. Bg2 {[%clk 0:03:01]}  g6 {[%clk 0:02:56]} 5. d3 {[%clk 0:03:01]}  Bg7 {[%clk 0:02:56]} 6. f4 {[%clk 0:03:01]}  Rb8 {[%clk 0:02:55]} 7. Nf3 {[%clk 0:03:00]}  e6 {[%clk 0:02:54]} 8. a3 {[%clk 0:03:00]}  Nge7 {[%clk 0:02:54]} 9. Be3 {[%clk 0:02:59]}  b5 {[%clk 0:02:53]} 10. Rb1 {[%clk 0:02:59]}  a5 {[%clk 0:02:51]} 11. O-O {[%clk 0:02:58]}  b4 {[%clk 0:02:51]} 12. axb4 {[%clk 0:02:58]}  axb4 {[%clk 0:02:52]} 13. Ne2 {[%clk 0:02:58]}  O-O {[%clk 0:02:51]} 14. e5 {[%clk 0:02:52]}  Nf5 {[%clk 0:02:45]} 15. Bf2 {[%clk 0:02:52]}  Bb7 {[%clk 0:02:23]} 16. g4 {[%clk 0:02:51]}  Nfe7 {[%clk 0:02:18]} 17. exd6 {[%clk 0:02:46]}  Qxd6 {[%clk 0:02:16]} 18. Nd2 {[%clk 0:02:46]}  Nd4 {[%clk 0:02:12]} 19. Ne4 {[%clk 0:02:18]}  Bxe4 {[%clk 0:02:07]} 20. dxe4 {[%clk 0:02:17]}  e5 {[%clk 0:01:57]} 21. f5 {[%clk 0:02:15]}  f6 {[%clk 0:01:51]} 22. Qd3 {[%clk 0:02:06]}  Nxe2+ {[%clk 0:01:47]} 23. Qxe2 {[%clk 0:02:05]}  Rfd8 {[%clk 0:01:44]} 24. Qc4+ {[%clk 0:01:58]}  Kh8 {[%clk 0:01:44]} 25. Bf3 {[%clk 0:01:58]}  Rbc8 {[%clk 0:01:38]} 26. Rfd1 {[%clk 0:01:54]}  Qb6 {[%clk 0:01:35]} 27. Rxd8+ {[%clk 0:01:53]}  Qxd8 {[%clk 0:01:35]} 28. Rd1 {[%clk 0:01:53]}  Qc7 {[%clk 0:01:33]} 29. Qe6 {[%clk 0:01:43]}  Rd8 {[%clk 0:01:21]} 30. Rxd8+ {[%clk 0:01:30]}  Qxd8 {[%clk 0:01:21]} 31. Bxc5 {[%clk 0:01:16]}  Ng8 {[%clk 0:01:20]} 32. Qd5 {[%clk 0:01:09]}  Qa5 {[%clk 0:01:17]} 33. Kg2 {[%clk 0:00:53]}  g5 {[%clk 0:01:13]} 34. Qc4 {[%clk 0:00:44]}  Qa4 {[%clk 0:01:02]} 35. Bxb4 {[%clk 0:00:36]}  Bf8 {[%clk 0:01:00]} 36. c3 {[%clk 0:00:24]}  Bxb4 {[%clk 0:00:52]} 37. cxb4 {[%clk 0:00:24]}  Qa1 {[%clk 0:00:49]} 38. Qe2 {[%clk 0:00:22]}  Qa4 {[%clk 0:00:48]} 39. b5 {[%clk 0:00:22]}  Ne7 {[%clk 0:00:47]} 40. b6 {[%clk 0:00:19]}  Qc6 {[%clk 0:00:45]} 41. Qa6 {[%clk 0:00:15]}  Nc8 {[%clk 0:00:44]} 42. b3 {[%clk 0:00:02]}  Nxb6 {[%clk 0:00:41]} 43. Kg3 {[%clk 0:00:02]}  Qc5 {[%clk 0:00:32]} 44. Qa7 {[%clk 0:00:01]}  Qe3 {[%clk 0:00:24]} 0-1


[Site "https://www.chess.com"]

[Event "Titled Tuesday Blitz March 21 Early 2023"]
[White "Rose, Felix"]
[Black "Singgih, Diajeng Theresa"]
[WhiteFideId "5105722"]
[BlackFideId "7104391"]
[WhiteElo "2039"]
[BlackElo "1891"]
[Result "0-1"]
[Round "10"]
[TimeControl "180+2"]
[Date "2023.03.21"]
[WhiteClock "0:00:45"]
[BlackClock "0:01:32"]

1. e4 {[%clk 0:02:59]}  e5 {[%clk 0:02:54]} 2. Nf3 {[%clk 0:02:57]}  Nc6 {[%clk 0:02:49]} 3. Bc4 {[%clk 0:02:57]}  Bc5 {[%clk 0:02:48]} 4. c3 {[%clk 0:02:56]}  Nf6 {[%clk 0:02:47]} 5. d3 {[%clk 0:02:56]}  d5 {[%clk 0:02:42]} 6. exd5 {[%clk 0:02:51]}  Nxd5 {[%clk 0:02:42]} 7. O-O {[%clk 0:02:51]}  Bb6 {[%clk 0:02:40]} 8. Re1 {[%clk 0:02:50]}  O-O {[%clk 0:02:35]} 9. Nxe5 {[%clk 0:02:46]}  Nxe5 {[%clk 0:02:34]} 10. Rxe5 {[%clk 0:02:47]}  Bxf2+ {[%clk 0:02:33]} 11. Kxf2 {[%clk 0:02:41]}  Qf6+ {[%clk 0:02:34]} 12. Qf3 {[%clk 0:02:41]}  Qxe5 {[%clk 0:02:34]} 13. Qxd5 {[%clk 0:02:34]}  Qxh2 {[%clk 0:02:33]} 14. Qf3 {[%clk 0:02:33]}  Be6 {[%clk 0:02:26]} 15. Bf4 {[%clk 0:02:32]}  Qh4+ {[%clk 0:02:24]} 16. Bg3 {[%clk 0:02:28]}  Qg5 {[%clk 0:02:24]} 17. Bf4 {[%clk 0:02:26]}  Qc5+ {[%clk 0:02:20]} 18. Be3 {[%clk 0:02:17]}  Qd6 {[%clk 0:02:18]} 19. Nd2 {[%clk 0:02:12]}  f5 {[%clk 0:02:12]} 20. Bf4 {[%clk 0:02:06]}  Qb6+ {[%clk 0:02:11]} 21. Be3 {[%clk 0:02:02]}  Qd6 {[%clk 0:02:11]} 22. Rh1 {[%clk 0:01:32]}  Bxc4 {[%clk 0:02:05]} 23. Nxc4 {[%clk 0:01:24]}  Qxd3 {[%clk 0:02:03]} 24. Ne5 {[%clk 0:01:15]}  Qc2+ {[%clk 0:01:57]} 25. Kg3 {[%clk 0:00:59]}  f4+ {[%clk 0:01:44]} 26. Bxf4 {[%clk 0:00:58]}  c6 {[%clk 0:01:43]} 27. Qh5 {[%clk 0:00:48]}  Rxf4 {[%clk 0:01:35]} 28. Qxh7+ {[%clk 0:00:45]}  Qxh7 {[%clk 0:01:32]} 0-1


[Site "https://www.chess.com"]

[Event "Titled Tuesday Blitz March 21 Early 2023"]
[White "Larina, Maria"]
[Black "Vargas Rodriguez, Wilver"]
[WhiteFideId "24113182"]
[BlackFideId "3509672"]
[WhiteElo "1848"]
[BlackElo "2238"]
[Result "1-0"]
[Round "10"]
[TimeControl "180+2"]
[Date "2023.03.21"]
[WhiteClock "0:00:20"]
[BlackClock "0:00:04"]

1. e4 {[%clk 0:03:00]}  c5 {[%clk 0:02:56]} 2. Nc3 {[%clk 0:03:00]}  Nc6 {[%clk 0:02:42]} 3. g3 {[%clk 0:03:00]}  g6 {[%clk 0:02:42]} 4. Bg2 {[%clk 0:03:00]}  Bg7 {[%clk 0:02:43]} 5. d3 {[%clk 0:03:00]}  e6 {[%clk 0:02:43]} 6. Be3 {[%clk 0:03:00]}  Nge7 {[%clk 0:02:40]} 7. Bxc5 {[%clk 0:02:53]}  O-O {[%clk 0:02:33]} 8. Be3 {[%clk 0:02:48]}  d5 {[%clk 0:02:30]} 9. Bg5 {[%clk 0:02:31]}  Qb6 {[%clk 0:02:24]} 10. Rb1 {[%clk 0:02:13]}  Bd4 {[%clk 0:02:08]} 11. Nh3 {[%clk 0:02:09]}  dxe4 {[%clk 0:01:52]} 12. Nxe4 {[%clk 0:01:58]}  f5 {[%clk 0:01:38]} 13. Nd2 {[%clk 0:01:52]}  Bxb2 {[%clk 0:01:18]} 14. O-O {[%clk 0:01:51]}  Qd4 {[%clk 0:01:17]} 15. Bh6 {[%clk 0:01:44]}  Re8 {[%clk 0:01:11]} 16. Nc4 {[%clk 0:01:18]}  Bc3 {[%clk 0:01:09]} 17. Qe2 {[%clk 0:01:03]}  Qd8 {[%clk 0:00:27]} 18. Ng5 {[%clk 0:00:59]}  Nd5 {[%clk 0:00:21]} 19. Nf3 {[%clk 0:00:51]}  Bf6 {[%clk 0:00:19]} 20. h4 {[%clk 0:00:49]}  Nc3 {[%clk 0:00:19]} 21. Qd2 {[%clk 0:00:46]}  Nxb1 {[%clk 0:00:19]} 22. Rxb1 {[%clk 0:00:47]}  e5 {[%clk 0:00:18]} 23. Bg5 {[%clk 0:00:43]}  Bxg5 {[%clk 0:00:15]} 24. Nxg5 {[%clk 0:00:41]}  e4 {[%clk 0:00:15]} 25. Qc3 {[%clk 0:00:33]}  Qd4 {[%clk 0:00:14]} 26. Qb3 {[%clk 0:00:32]}  Kg7 {[%clk 0:00:05]} 27. dxe4 {[%clk 0:00:30]}  fxe4 {[%clk 0:00:05]} 28. Re1 {[%clk 0:00:27]}  Be6 {[%clk 0:00:04]} 29. Rxe4 {[%clk 0:00:20]} 1-0


[Site "https://www.chess.com"]